bitfinex/quotes_BTCUSD_20251208
["timestamp","ask_amount","ask_price","bid_price","bid_amount"]
[1765227005843,0.07027,90758.0,90757.0,0.23150279]
[1765227006527,0.00079935,90758.0,90757.0,0.23150279]
[1765227007451,0.00079935,90758.0,90757.0,0.37864566]
[1765227007903,0.00079935,90758.0,90757.0,0.37964566]
[1765227008314,0.00079935,90758.0,90757.0,0.38164566]
[1765227008508,0.00079935,90758.0,90757.0,0.40184566]
[1765227008677,0.00079935,90758.0,90757.0,0.37964566]
[1765227008886,0.00079935,90758.0,90757.0,0.40484566]
[1765227009088,0.00079935,90758.0,90757.0,0.44516865]
[1765227009448,0.00079935,90758.0,90757.0,0.79136865]
[1765227009856,0.00079935,90758.0,90757.0,0.76816865]
[1765227010060,0.00079935,90758.0,90757.0,0.77016865]
[1765227010369,0.00079935,90758.0,90757.0,0.79236865]
[1765227010542,0.00079935,90758.0,90757.0,0.76816865]
[1765227010758,0.00079935,90758.0,90757.0,0.79336865]
[1765227010988,0.00079935,90758.0,90757.0,0.78936865]
[1765227011188,0.00079935,90758.0,90757.0,0.83362197]
[1765227011371,0.00079935,90758.0,90757.0,0.81142197]
[1765227012508,0.00079935,90758.0,90757.0,0.77216865]
[1765227012994,0.00079935,90758.0,90757.0,0.81142197]
[1765227013356,0.00079935,90758.0,90757.0,0.79436865]
[1765227013773,0.00079935,90758.0,90757.0,0.77216865]
[1765227014625,0.00079935,90758.0,90757.0,0.91776865]
[1765227014835,0.00079935,90758.0,90757.0,0.93996865]
[1765227015034,0.00079935,90758.0,90757.0,0.91776865]
[1765227015273,0.00079935,90758.0,90757.0,0.93996865]
[1765227016799,0.04002,90799.0,90798.0,0.22026916]
[1765227018222,0.002,90804.0,90803.0,0.22025703]
[1765227018890,0.00235,90804.0,90803.0,0.22025703]
[1765227019879,0.00235,90804.0,90800.0,0.22026431]
[1765227019880,0.01101285,90803.0,90800.0,0.22026431]
[1765227020083,0.08387,90804.0,90803.0,0.22025703]
[1765227020329,0.002,90804.0,90803.0,0.22025703]
[1765227022609,0.01301273,90804.0,90801.0,0.23127474]
[1765227022772,0.0608,90804.0,90802.0,0.22025918]
[1765227022951,0.0608,90804.0,90803.0,0.22025703]
[1765227023329,0.00336098,90804.0,90803.0,0.22025703]
[1765227023886,0.06216098,90804.0,90803.0,0.22025703]
[1765227024559,0.00336098,90804.0,90803.0,0.22025703]
[1765227024845,0.00336098,90804.0,90803.0,0.36262703]
[1765227025178,0.00336098,90804.0,90803.0,0.3642399]
[1765227026297,0.00336098,90804.0,90803.0,0.5098399]
[1765227026504,0.00336098,90804.0,90803.0,0.5118399]
[1765227027452,0.00336098,90804.0,90803.0,0.77196289]
[1765227027684,0.00336098,90804.0,90803.0,0.77696289]
[1765227028312,0.00336098,90804.0,90803.0,0.75676289]
[1765227028515,0.00336098,90804.0,90803.0,0.2288699]
[1765227028730,0.00336098,90804.0,90803.0,0.3692399]
[1765227029225,0.00336098,90804.0,90803.0,0.3682399]
[1765227029564,0.00336098,90804.0,90803.0,0.2298699]
[1765227029803,0.00336098,90804.0,90803.0,0.2228699]
[1765227029984,0.00336098,90804.0,90803.0,0.2268699]
[1765227030854,0.00336098,90804.0,90803.0,0.2228699]
[1765227031058,0.00336098,90804.0,90803.0,0.3642399]
[1765227031291,0.00336098,90804.0,90803.0,0.3672399]
[1765227031496,0.00336098,90804.0,90803.0,0.3692399]
[1765227031895,0.00336098,90804.0,90803.0,0.3672399]
[1765227032303,0.00336098,90804.0,90803.0,0.3682399]
[1765227032617,0.01205098,90804.0,90803.0,0.2228699]
[1765227032811,0.00336098,90804.0,90803.0,0.3692399]
[1765227032932,0.00336098,90804.0,90803.0,0.3642399]
[1765227033131,0.00336098,90804.0,90803.0,0.2757699]
[1765227033335,0.00336098,90804.0,90803.0,0.2248699]
[1765227033582,0.00336098,90804.0,90803.0,0.2218699]
[1765227034011,0.00336098,90804.0,90803.0,0.2787699]
[1765227034216,0.00336098,90804.0,90803.0,0.3672399]
[1765227034615,0.00336098,90804.0,90803.0,0.3692399]
[1765227035276,0.00336098,90804.0,90803.0,0.3672399]
[1765227035475,0.00336098,90804.0,90803.0,0.3682399]
[1765227037925,0.00336098,90804.0,90803.0,0.36835625]
[1765227038498,0.00336098,90804.0,90803.0,0.51395625]
[1765227040143,0.00336098,90804.0,90803.0,0.51295625]
[1765227040300,0.00336098,90804.0,90803.0,0.50995625]
[1765227040507,0.00336098,90804.0,90803.0,0.51895625]
[1765227041326,0.00336098,90804.0,90803.0,0.51595625]
[1765227041768,0.00336098,90804.0,90803.0,0.62594281]
[1765227042122,0.00336098,90804.0,90803.0,0.92467924]
[1765227042304,0.00336098,90804.0,90803.0,0.90247924]
[1765227042769,0.00336098,90804.0,90803.0,0.89747924]
[1765227043152,0.00336098,90804.0,90803.0,0.90347924]
[1765227043351,0.00336098,90804.0,90803.0,0.94249733]
[1765227043549,0.00336098,90804.0,90803.0,0.94549733]
[1765227043892,0.00336098,90804.0,90803.0,0.94249733]
[1765227044318,0.00336098,90804.0,90803.0,0.94549733]
[1765227044527,0.05509187,90830.0,90822.0,0.01101054]
[1765227044724,0.01101042,90823.0,90820.0,0.00199998]
[1765227044924,0.0110103,90824.0,90820.0,0.00099999]
[1765227045174,0.23120879,90827.0,90820.0,0.01401076]
[1765227045318,0.01100994,90827.0,90823.0,0.23121892]
[1765227045518,0.23121201,90826.0,90820.0,0.01201078]
[1765227045719,0.01101006,90826.0,90822.0,0.23122117]
[1765227045919,0.23121134,90826.0,90822.0,0.01101054]
[1765227046124,0.01101018,90825.0,90821.0,0.23122316]
[1765227046330,0.01101018,90825.0,90821.0,0.01101066]
[1765227046531,0.01101018,90825.0,90820.0,0.23422485]
[1765227046749,0.01101042,90823.0,90820.0,0.00299997]
[1765227046956,0.23121953,90823.0,90820.0,0.00099999]
[1765227047163,0.01100776,90845.0,90837.0,0.01100872]
[1765227047491,0.01029316,90852.0,90839.0,0.27497975]
[1765227047697,0.01029316,90853.0,90839.0,0.27659262]
[1765227047900,0.01029316,90853.0,90839.0,0.35956262]
[1765227048102,0.323,90857.0,90839.0,0.35956262]
[1765227048103,0.01748,90851.0,90839.0,0.35956262]
[1765227048306,0.00078793,90840.0,90839.0,0.35956262]
[1765227048703,0.00078793,90840.0,90839.0,0.27659262]
[1765227049126,0.00078793,90840.0,90839.0,0.35956262]
[1765227049321,0.00078793,90840.0,90839.0,0.36256262]
[1765227049528,0.00178793,90840.0,90839.0,0.35956262]
[1765227049956,0.00178793,90840.0,90839.0,0.36156262]
[1765227050184,0.00078793,90840.0,90839.0,0.36156262]
[1765227050580,0.00185235,90840.0,90839.0,0.36156262]
[1765227052388,0.00185235,90840.0,90839.0,0.22216975]
[1765227052765,0.00185235,90840.0,90839.0,0.22116975]
[1765227053033,0.00185235,90840.0,90839.0,0.22516975]
[1765227053422,0.01100727,90849.0,90839.0,0.22516975]
[1765227053423,0.01028897,90849.0,90848.0,0.22014793]
[1765227053647,1.15950355,90904.0,90859.0,0.22012128]
[1765227053648,0.0110034,90881.0,90859.0,0.22012128]
[1765227053871,0.00047689,90860.0,90859.0,0.31427415]
[1765227054068,0.00047689,90860.0,90859.0,0.39724415]
[1765227054481,0.00047689,90860.0,90852.0,0.01100691]
[1765227054718,0.23113436,90857.0,90853.0,0.01100679]
[1765227054927,0.22014917,90848.0,90840.0,0.00099999]
[1765227055129,0.01100751,90847.0,90840.0,0.23217504]
[1765227055234,0.23115887,90847.0,90842.0,0.01100812]
[1765227055440,0.01100751,90847.0,90842.0,0.23116962]
[1765227055651,0.01100751,90847.0,90841.0,0.23117276]
[1765227055652,0.23116089,90846.0,90841.0,0.23117268]
[1765227055941,0.23116089,90846.0,90842.0,0.22016201]
[1765227056096,0.23116732,90844.0,90840.0,0.23517457]
[1765227056464,0.01100788,90844.0,90842.0,0.002]
[1765227056644,0.23116621,90844.0,90842.0,0.002]
[1765227056804,0.06605056,90843.0,90842.0,0.002]
[1765227057222,0.14310516,90843.0,90842.0,0.002]
[1765227057399,0.06605056,90843.0,90841.0,0.001]
[1765227057798,0.06605056,90843.0,90842.0,0.22016247]
[1765227058196,0.06605056,90843.0,90842.0,0.17016247]
[1765227058623,0.06605056,90843.0,90842.0,0.17116247]
[1765227059030,0.06605056,90843.0,90842.0,0.17016247]
[1765227059251,0.06605056,90843.0,90841.0,0.22316369]
[1765227059453,0.06605056,90843.0,90842.0,0.001]
[1765227060024,0.06605056,90843.0,90841.0,0.22016369]
[1765227060350,0.06605056,90843.0,90841.0,0.22016323]
[1765227060648,0.06605056,90843.0,90841.0,0.2201649]
[1765227060848,0.06605056,90843.0,90842.0,0.003]
[1765227061277,0.06605056,90843.0,90838.0,0.23118027]
[1765227061278,0.07705856,90843.0,90838.0,0.23118027]
[1765227061492,0.07705856,90843.0,90841.0,0.001]
[1765227061493,0.37317207,90843.0,90841.0,0.001]
[1765227061692,0.33328528,90842.0,90841.0,0.004]
[1765227061870,0.33328528,90842.0,90820.0,0.00099999]
[1765227061871,0.22021292,90822.0,90820.0,0.00099999]
[1765227062059,0.0110103,90824.0,90820.0,0.00099999]
[1765227062259,0.22022066,90818.0,90817.0,0.1456]
[1765227062481,0.01101042,90823.0,90817.0,0.05481]
[1765227062719,0.23122461,90821.0,90818.0,0.23123137]
[1765227062951,0.23122461,90821.0,90820.0,0.002]
[1765227063151,0.07706122,90821.0,90820.0,0.002]
[1765227063657,0.06605056,90821.0,90820.0,0.002]
[1765227064398,0.06605056,90821.0,90820.0,0.003]
[1765227064896,0.06605056,90821.0,90820.0,0.001]
[1765227066743,0.22021581,90820.0,90818.0,0.00038793]
[1765227068949,0.29727703,90821.0,90818.0,0.01139896]
[1765227068950,0.01748,90819.0,90818.0,0.01139896]
[1765227069261,0.01748,90819.0,90818.0,0.00038793]
[1765227070140,0.23769823,90819.0,90818.0,0.00138793]
[1765227070729,0.01748,90819.0,90818.0,0.00138793]
[1765227072168,0.07706122,90821.0,90818.0,0.00138793]
[1765227072389,0.01748,90820.0,90818.0,0.00138793]
[1765227072559,0.22021823,90819.0,90818.0,0.00138793]
[1765227072828,0.56541823,90819.0,90818.0,0.00138793]
[1765227073062,0.56541823,90819.0,90818.0,0.00038793]
[1765227073290,0.61602414,90819.0,90781.0,0.02928548]
[1765227073506,0.61602414,90819.0,90757.0,0.02934026]
[1765227073507,0.1851,90759.0,90757.0,0.02934026]
[1765227073802,0.1851,90759.0,90740.0,0.01122049]
[1765227073803,0.01101989,90745.0,90740.0,0.0002]
[1765227074028,0.22039204,90748.0,90741.0,0.04284]
[1765227074029,0.01101952,90748.0,90741.0,0.04284]
[1765227074253,0.01101904,90752.0,90747.0,0.01101964]
[1765227074464,0.01748,90751.0,90749.0,0.0110194]
[1765227074685,0.01748,90751.0,90749.0,0.00011635]
[1765227074903,0.33401843,90757.0,90752.0,0.01101904]
[1765227075115,0.01748,90756.0,90752.0,0.01101904]
[1765227075345,0.06605056,90753.0,90750.0,0.01101928]
[1765227075668,0.07706947,90753.0,90749.0,0.01274862]
[1765227075883,0.07706947,90753.0,90749.0,0.23313499]
[1765227076089,0.01101904,90752.0,90749.0,0.00172922]
[1765227076311,0.23140177,90752.0,90749.0,0.00172922]
[1765227076518,0.01101904,90752.0,90749.0,0.01274862]
[1765227076723,0.01101904,90752.0,90749.0,0.00111635]
[1765227076724,0.06819911,90751.0,90749.0,0.00111635]
[1765227076923,0.2203852,90751.0,90749.0,0.00011635]
[1765227077311,0.01101904,90752.0,90749.0,0.00011635]
[1765227077312,0.06605056,90753.0,90751.0,0.22038205]
[1765227077430,0.01748,90752.0,90751.0,0.22038205]
[1765227078695,0.06605056,90753.0,90751.0,0.00161287]
[1765227079143,0.06605056,90753.0,90751.0,0.22199489]
[1765227079326,0.06605056,90753.0,90751.0,0.00161287]
[1765227079533,0.06605056,90753.0,90751.0,0.00261287]
[1765227080377,0.06605056,90753.0,90751.0,0.22299422]
[1765227080977,0.01748,90752.0,90751.0,0.22299422]
[1765227081229,0.01101649,90773.0,90765.0,0.01101746]
[1765227081434,0.01748,90764.0,90763.0,0.23137058]
[1765227081669,0.63379918,90790.0,90763.0,0.23137058]
[1765227081670,0.01101576,90779.0,90774.0,0.01101637]
[1765227081874,0.01101539,90782.0,90778.0,0.01101588]
[1765227082211,0.01101539,90782.0,90764.0,0.08712]
[1765227082212,0.01101709,90768.0,90747.0,0.08712]
[1765227082412,0.06605056,90764.0,90762.0,0.01101782]
[1765227082717,0.06605056,90764.0,90761.0,0.01101794]
[1765227082929,0.06605056,90764.0,90762.0,0.22035542]
[1765227083123,0.06605056,90764.0,90763.0,0.00172922]
[1765227083344,0.06605056,90764.0,90763.0,0.06172922]
[1765227083785,0.06605056,90764.0,90763.0,0.06772922]
[1765227083967,0.06605056,90764.0,90763.0,0.06172922]
[1765227084191,0.06605056,90764.0,90763.0,0.15084922]
[1765227084472,0.323,90782.0,90776.0,0.01101612]
[1765227084614,0.01101564,90780.0,90777.0,0.23133484]
[1765227084814,0.23133036,90780.0,90776.0,0.01101612]
[1765227085017,0.01101576,90779.0,90775.0,0.23134035]
[1765227085480,0.01101564,90780.0,90777.0,0.011016]
[1765227085481,0.323,90780.0,90777.0,0.011016]
[1765227085632,0.01748,90779.0,90777.0,0.011016]
[1765227085831,0.02849576,90779.0,90775.0,0.01101624]
[1765227086239,0.24881221,90779.0,90775.0,0.01101624]
[1765227086464,0.02849576,90779.0,90775.0,0.01101624]
[1765227086664,0.01101588,90778.0,90775.0,0.01201624]
[1765227087406,0.01748,90779.0,90776.0,0.23133867]
[1765227087618,0.01748,90779.0,90775.0,0.01201624]
[1765227087619,0.02849576,90779.0,90775.0,0.2323392]
[1765227088236,0.02849576,90779.0,90775.0,0.2313392]
[1765227088396,0.24881162,90779.0,90775.0,0.2313392]
[1765227088596,0.22031815,90778.0,90775.0,0.01201624]
[1765227088809,0.01748,90779.0,90776.0,0.01101612]
[1765227089011,0.01748,90779.0,90776.0,0.23133682]
[1765227089451,0.01748,90779.0,90778.0,0.22031769]
[1765227089658,0.323,90781.0,90780.0,0.22031284]
[1765227089955,0.01748,90781.0,90778.0,0.23133357]
[1765227090303,0.01101515,90784.0,90778.0,0.23133357]
[1765227090304,0.33323046,90784.0,90783.0,0.22030556]
[1765227090490,0.34048,90784.0,90783.0,0.22030556]
[1765227090701,0.06605056,90788.0,90787.0,0.22029585]
[1765227090871,0.06605056,90788.0,90785.0,0.01101503]
[1765227090872,0.08353056,90788.0,90785.0,0.01101503]
[1765227091017,0.08353056,90788.0,90787.0,0.22029585]
[1765227091422,0.08353056,90788.0,90785.0,0.01101503]
[1765227091673,0.06605056,90788.0,90787.0,0.22029585]
[1765227091838,0.08353056,90788.0,90787.0,0.22229585]
[1765227092039,0.08353056,90788.0,90787.0,0.002]
[1765227092371,0.08353056,90788.0,90787.0,0.22229585]
[1765227093939,0.08353056,90788.0,90787.0,0.002]
[1765227094358,0.33861183,90788.0,90787.0,0.002]
[1765227094632,0.34886059,90788.0,90787.0,0.002]
[1765227094873,0.31407275,90788.0,90787.0,0.002]
[1765227095067,0.07629932,90788.0,90787.0,0.002]
[1765227095261,0.31407275,90788.0,90787.0,0.002]
[1765227095466,0.09377932,90788.0,90787.0,0.22229585]
[1765227095702,0.01024876,90788.0,90787.0,0.28390872]
[1765227095876,0.06605056,90790.0,90789.0,0.220291]
[1765227096662,0.06605056,90790.0,90789.0,0.22190387]
[1765227097451,0.06605056,90790.0,90789.0,0.220291]
[1765227097621,0.06605056,90790.0,90789.0,0.221291]
[1765227097837,0.28633913,90790.0,90789.0,0.001]
[1765227098041,0.06605056,90790.0,90789.0,0.221291]
[1765227098245,0.07630919,90790.0,90789.0,0.221291]
[1765227099676,0.01025863,90790.0,90789.0,0.221291]
[1765227099897,0.01101285,90803.0,90798.0,0.22026916]
[1765227099898,0.01025863,90799.0,90798.0,0.22026916]
[1765227100103,0.01748,90799.0,90798.0,0.22026916]
[1765227100309,0.01025863,90800.0,90799.0,0.22026674]
[1765227100633,0.22025474,90804.0,90802.0,0.22025946]
[1765227100772,0.02775137,90803.0,90801.0,0.23127376]
[1765227100982,0.01027137,90802.0,90801.0,0.23139011]
[1765227101488,0.02775137,90802.0,90801.0,0.23139011]
[1765227102426,0.02875137,90802.0,90801.0,0.00011635]
[1765227103034,0.02875137,90802.0,90801.0,0.22037824]
[1765227103189,0.02875137,90802.0,90801.0,0.00011635]
[1765227103389,0.01848,90802.0,90801.0,0.00011635]
[1765227103594,0.02875881,90802.0,90801.0,0.22037824]
[1765227104647,0.02875881,90802.0,90801.0,0.00011635]
[1765227104853,0.01127881,90802.0,90801.0,0.00011635]
[1765227105032,0.02875881,90802.0,90801.0,0.22037824]
[1765227105566,0.02875881,90802.0,90801.0,0.00011635]
[1765227105942,0.24901827,90802.0,90801.0,0.00011635]
[1765227106729,0.02875881,90802.0,90801.0,0.00011635]
[1765227107853,0.02875881,90802.0,90801.0,0.22037824]
[1765227109932,0.01127881,90802.0,90801.0,0.40498111]
[1765227110196,0.001,90802.0,90801.0,0.32105111]
[1765227110358,0.01127881,90802.0,90801.0,0.26566111]
[1765227110801,0.01027881,90802.0,90801.0,0.26566111]
[1765227111623,0.01027881,90802.0,90801.0,0.22299111]
[1765227111824,0.01027881,90802.0,90801.0,0.22199111]
[1765227112026,0.01027881,90802.0,90801.0,0.22299111]
[1765227112477,0.01027881,90804.0,90803.0,0.22025703]
[1765227113040,0.01027881,90804.0,90802.0,0.22025822]
[1765227113041,0.02129154,90804.0,90801.0,0.23399973]
[1765227113242,0.01027881,90803.0,90802.0,0.22025946]
[1765227113497,0.07706304,90806.0,90803.0,0.23126988]
[1765227113663,0.01029425,90805.0,90804.0,0.22025438]
[1765227114084,0.01029425,90805.0,90803.0,0.22025498]
[1765227114287,0.01029425,90804.0,90803.0,0.22025498]
[1765227114600,0.01029425,90805.0,90804.0,0.22025461]
[1765227114836,0.02366989,90812.0,90804.0,0.22025461]
[1765227114837,0.05315041,90819.0,90818.0,0.22022066]
[1765227115044,0.06605056,90821.0,90818.0,0.22022066]
[1765227115045,0.06605056,90821.0,90820.0,0.22021581]
[1765227115223,0.0938243,90821.0,90820.0,0.22021581]
[1765227116710,0.0763443,90821.0,90820.0,0.22021581]
[1765227116946,0.0948243,90821.0,90820.0,0.22021581]
[1765227117677,0.02777374,90821.0,90820.0,0.22021581]
[1765227117877,0.01748,90821.0,90820.0,0.22021581]
[1765227118078,0.01029374,90825.0,90824.0,0.22020611]
[1765227118280,0.02777374,90825.0,90824.0,0.22020611]
[1765227119339,0.01029374,90825.0,90824.0,0.36113898]
[1765227119582,0.02777374,90830.0,90829.0,0.22019399]
[1765227119791,0.01748,90830.0,90829.0,0.22019399]
[1765227119997,0.01029374,90836.0,90835.0,0.22017944]
[1765227120213,0.01029374,90837.0,90836.0,0.22017702]
[1765227120423,0.06605056,90843.0,90839.0,0.22016975]
[1765227120655,0.06605056,90843.0,90842.0,0.22016247]
[1765227120863,0.07672729,90843.0,90842.0,0.22016247]
[1765227121535,0.06643849,90843.0,90842.0,0.22016247]
[1765227122830,0.01100848,90839.0,90836.0,0.001]
[1765227123059,0.22017459,90837.0,90836.0,0.001]
[1765227123274,0.30967654,90837.0,90836.0,0.001]
[1765227123911,0.2202054,90825.0,90821.0,0.23122399]
[1765227124154,0.06605056,90822.0,90821.0,0.23122404]
[1765227124370,0.06605056,90822.0,90819.0,0.23122909]
[1765227124581,0.06605056,90822.0,90819.0,0.01101091]
[1765227124794,0.1569805,90822.0,90816.0,0.01101127]
[1765227124998,0.22021338,90821.0,90816.0,0.01101127]
[1765227125203,0.23122693,90820.0,90817.0,0.23123423]
[1765227125417,0.01101066,90821.0,90818.0,0.23123073]
[1765227125632,0.23122477,90821.0,90818.0,0.23123073]
[1765227125813,0.06605056,90822.0,90816.0,0.2312363]
[1765227126006,0.06605056,90822.0,90819.0,0.22021816]
[1765227126206,0.06605056,90822.0,90821.0,0.22021338]
[1765227126410,0.0236824,90839.0,90821.0,0.22021338]
[1765227126411,0.2438522,90839.0,90832.0,0.01100933]
[1765227126638,0.2438522,90839.0,90835.0,0.22017839]
[1765227126639,0.58193873,90838.0,90835.0,0.22017839]
[1765227126856,0.01100933,90832.0,90827.0,0.01100994]
[1765227127088,0.01100994,90827.0,90822.0,0.01101054]
[1765227127222,0.06605056,90828.0,90824.0,0.0110103]
[1765227127428,0.22020156,90826.0,90823.0,0.23121675]
[1765227127850,0.22021161,90822.0,90819.0,0.22021749]
[1765227128187,0.24869446,90825.0,90822.0,0.002]
[1765227128355,0.22020672,90824.0,90822.0,0.002]
[1765227128673,0.2486942,90825.0,90822.0,0.22220973]
[1765227128879,0.2486942,90825.0,90822.0,0.23322027]
[1765227128880,0.22020656,90824.0,90822.0,0.23322027]
[1765227129081,0.22020656,90824.0,90822.0,0.002]
[1765227129082,0.22020853,90823.0,90822.0,0.002]
[1765227129398,0.01101066,90821.0,90816.0,0.01101127]
[1765227129601,0.22021752,90820.0,90816.0,0.23123607]
[1765227129802,0.22022066,90818.0,90814.0,0.22023035]
[1765227129935,0.01101091,90819.0,90815.0,0.01101139]
[1765227130138,0.01101079,90820.0,90817.0,0.22022308]
[1765227130139,0.00615227,90818.0,90817.0,0.22022308]
[1765227130336,0.06605056,90828.0,90824.0,0.0110103]
[1765227130551,0.01028164,90827.0,90826.0,0.22020089]
[1765227131565,0.06605056,90828.0,90827.0,0.22019883]
[1765227131770,0.07633285,90828.0,90827.0,0.22019883]
[1765227132423,0.06605056,90828.0,90827.0,0.22019883]
[1765227133240,0.06705056,90828.0,90827.0,0.22019883]
[1765227133452,0.07733319,90828.0,90827.0,0.22019883]
[1765227133663,0.07733319,90828.0,90825.0,0.01101018]
[1765227133873,0.01101079,90820.0,90816.0,0.22022423]
[1765227134074,0.2312269,90820.0,90817.0,0.2202225]
[1765227134308,0.22021836,90819.0,90817.0,0.01101115]
[1765227134520,0.23122423,90821.0,90819.0,0.22021818]
[1765227134727,0.23122392,90822.0,90815.0,0.01101139]
[1765227134973,0.33025743,90839.0,90810.0,0.1456]
[1765227134974,0.04121366,90821.0,90810.0,0.1456]
[1765227135175,0.28628868,90811.0,90808.0,0.01101224]
[1765227135357,0.06605056,90811.0,90809.0,0.22024248]
[1765227135716,0.06605056,90811.0,90810.0,0.22024006]
[1765227136214,0.01101042,90823.0,90816.0,0.01101127]
[1765227136415,0.22021595,90820.0,90817.0,0.01101115]
[1765227136738,0.22021595,90820.0,90814.0,0.22023036]
[1765227136739,0.01101103,90818.0,90815.0,0.23123899]
[1765227136907,0.24151709,90819.0,90816.0,0.01101127]
[1765227137062,0.02129893,90818.0,90814.0,0.01101151]
[1765227137267,0.24151977,90818.0,90815.0,0.23123726]
[1765227137467,0.0102879,90817.0,90815.0,0.01101139]
[1765227137779,0.0102879,90817.0,90816.0,0.22022551]
[1765227137983,0.02129881,90819.0,90817.0,0.22022241]
[1765227138196,0.02129881,90819.0,90817.0,0.22022212]
[1765227138584,0.22022066,90818.0,90817.0,0.001]
[1765227138792,0.0102879,90818.0,90817.0,0.22122303]
[1765227139125,0.0102879,90818.0,90816.0,0.01101127]
[1765227139339,0.0102879,90818.0,90817.0,0.22022308]
[1765227139529,0.24151282,90821.0,90819.0,0.22021776]
[1765227139713,0.0102879,90820.0,90819.0,0.22021776]
[1765227140115,0.02849054,90822.0,90820.0,0.22021554]
[1765227140320,0.25898952,90822.0,90819.0,0.23122867]
[1765227140516,0.25898952,90822.0,90820.0,0.22021581]
[1765227140517,0.0102879,90821.0,90820.0,0.22021581]
[1765227141358,0.03877844,90822.0,90820.0,0.22021581]
[1765227141997,0.0102879,90822.0,90821.0,0.22021338]
[1765227142208,0.00038769,90823.0,90822.0,0.22021096]
[1765227142623,0.03118052,90823.0,90822.0,0.22021096]
[1765227143032,0.03118052,90823.0,90820.0,0.2312266]
[1765227143235,0.01101079,90820.0,90812.0,0.01101176]
[1765227143442,0.0102879,90822.0,90819.0,0.22021823]
[1765227144047,0.0102879,90822.0,90821.0,0.22021338]
[1765227144261,0.05566382,90822.0,90820.0,0.22021384]
[1765227144463,0.0102879,90821.0,90820.0,0.22021384]
[1765227144869,0.0102879,90821.0,90818.0,0.23123009]
[1765227144870,0.23050152,90821.0,90818.0,0.23123009]
[1765227145065,0.0102879,90820.0,90819.0,0.22021586]
[1765227145216,0.0102879,90821.0,90819.0,0.22021586]
[1765227145875,0.24251257,90821.0,90818.0,0.23122726]
[1765227146076,0.0102879,90820.0,90819.0,0.22021823]
[1765227146583,0.0102879,90820.0,90818.0,0.23122726]
[1765227146800,0.0102879,90820.0,90811.0,0.1456]
[1765227146801,0.22023221,90814.0,90811.0,0.1456]
[1765227147008,0.23123638,90817.0,90814.0,0.22022808]
[1765227147628,0.23123638,90817.0,90814.0,0.23123959]
[1765227147825,0.23123638,90817.0,90815.0,0.22022728]
[1765227148055,0.23123638,90817.0,90813.0,0.23124247]
[1765227148280,0.06605056,90814.0,90813.0,0.23124247]
[1765227149783,0.06605056,90814.0,90813.0,0.23224247]
[1765227149997,0.06605056,90814.0,90813.0,0.001]
[1765227150210,0.06605056,90814.0,90813.0,0.22123278]
[1765227151683,0.06605056,90814.0,90813.0,0.001]
[1765227151895,0.33485101,90814.0,90813.0,0.001]
[1765227152131,0.61959402,90814.0,90813.0,0.001]
[1765227152343,0.64335409,90814.0,90813.0,0.001]
[1765227152557,0.42312373,90814.0,90787.0,0.01101479]
[1765227152769,0.01101345,90798.0,90793.0,0.22027903]
[1765227152972,0.01101333,90799.0,90796.0,0.22027402]
[1765227153182,0.0103131,90800.0,90797.0,0.01101357]
[1765227153392,0.23774189,90801.0,90798.0,0.23128261]
[1765227153805,0.06605056,90799.0,90798.0,0.23128261]
[1765227154422,0.22025578,90804.0,90798.0,0.23128261]
[1765227154423,0.23125307,90810.0,90804.0,0.01101273]
[1765227154624,0.0277902,90809.0,90808.0,0.22024263]
[1765227154830,0.01748,90809.0,90808.0,0.23125487]
[1765227155002,0.0103102,90812.0,90811.0,0.22023763]
[1765227155232,0.01748,90812.0,90807.0,0.22024696]
[1765227155459,0.0277902,90812.0,90807.0,0.01101236]
[1765227155669,0.0277902,90812.0,90809.0,0.23125313]
[1765227155900,0.0277902,90812.0,90811.0,0.22023763]
[1765227157096,0.02778785,90812.0,90811.0,0.22023763]
[1765227157320,0.01748,90812.0,90811.0,0.22023763]
[1765227158156,0.01030785,90813.0,90812.0,0.22023521]
[1765227158606,0.01030785,90813.0,90811.0,0.22023763]
[1765227159350,0.01030785,90813.0,90808.0,0.01101224]
[1765227159351,0.01101188,90811.0,90808.0,0.22024491]
[1765227159557,0.24155973,90811.0,90808.0,0.23125664]
[1765227159783,0.01030785,90810.0,90808.0,0.23125664]
[1765227159984,0.01030785,90811.0,90808.0,0.23125664]
[1765227160182,0.01030785,90811.0,90810.0,0.22024006]
[1765227160566,0.01030785,90812.0,90811.0,0.22023763]
[1765227160947,0.01030785,90812.0,90810.0,0.22024006]
[1765227161141,0.2305438,90812.0,90809.0,0.22023814]
[1765227161383,0.2305438,90812.0,90804.0,0.01101273]
[1765227161384,0.01101224,90808.0,90804.0,0.01101273]
[1765227161841,0.23125937,90808.0,90804.0,0.23126502]
[1765227161962,0.01030785,90807.0,90805.0,0.22025026]
[1765227162178,0.01030785,90807.0,90806.0,0.22024976]
[1765227162375,0.01030785,90809.0,90806.0,0.01101248]
[1765227162590,0.09522711,90809.0,90807.0,0.22024522]
[1765227162788,0.01030785,90808.0,90807.0,0.22024522]
[1765227163291,0.23054656,90811.0,90808.0,0.23125504]
[1765227163608,0.22024703,90808.0,90805.0,0.23126017]
[1765227163819,0.22025946,90802.0,90795.0,0.23128815]
[1765227164014,0.22025703,90803.0,90798.0,0.01262632]
[1765227164190,0.22025946,90802.0,90799.0,0.22026447]
[1765227164665,0.23126644,90805.0,90802.0,0.22025946]
[1765227164868,0.02475206,90809.0,90806.0,0.01101248]
[1765227165054,0.001,90809.0,90808.0,0.22024491]
[1765227165254,0.01030837,90812.0,90809.0,0.01101212]
[1765227165455,0.22023829,90811.0,90807.0,0.01101236]
[1765227165674,0.02132037,90810.0,90806.0,0.01101248]
[1765227165975,0.01101224,90808.0,90805.0,0.0110126]
[1765227166787,0.01101224,90808.0,90804.0,0.23126505]
[1765227166788,0.23126049,90807.0,90804.0,0.23126505]
[1765227167034,0.01101224,90808.0,90804.0,0.23126505]
[1765227167035,0.01030818,90806.0,90805.0,0.22025218]
[1765227167224,0.001,90808.0,90806.0,0.22024969]
[1765227167410,0.22124495,90808.0,90805.0,0.23126478]
[1765227167618,0.001,90808.0,90806.0,0.22024976]
[1765227167935,0.001,90808.0,90807.0,0.22024733]
[1765227168097,0.01130796,90808.0,90807.0,0.22024733]
[1765227168330,0.23055102,90809.0,90806.0,0.22024955]
[1765227168496,0.23055363,90808.0,90805.0,0.2312645]
[1765227168710,0.01130796,90807.0,90805.0,0.2312645]
[1765227168906,0.01130796,90807.0,90806.0,0.22024976]
[1765227169111,0.23055579,90807.0,90805.0,0.0110126]
[1765227169389,0.22024783,90807.0,90805.0,0.0110126]
[1765227169663,0.01030823,90806.0,90805.0,0.0110126]
[1765227169822,0.01030823,90807.0,90805.0,0.23126282]
[1765227170163,0.2312649,90805.0,90801.0,0.01101309]
[1765227170362,0.2312649,90805.0,90802.0,0.22025758]
[1765227170566,0.2312649,90805.0,90801.0,0.01101309]
[1765227170567,0.22025545,90804.0,90801.0,0.23127017]
[1765227171097,0.22025742,90803.0,90801.0,0.23127017]